{"text_format":"1","workbook":"xlsx","n_sheets":3,"sheets":["Overview","Mathematical","VBA"],"not_rendered":{"charts":0,"images":0,"macros":1,"external_links":0,"defined_names":0,"comments":0,"pivot_tables":0},"unopened":[],"bounds":{"document_bytes":16777216,"sheet_cells":100000,"rows_first":2000,"rows_last":500,"rows_between":2000,"halvings":0,"cell_chars":16384,"cell_head_chars":4096},"cells_cut":0,"cells_raw":0,"read":"whole","date_system":"1900"}

{"sheet":"Overview","index":0,"n_rows":15,"n_cols":3,"rows_kept":15,"cut":false,"hidden":false,"merged":[[1,1,1,2]]}
[]
[null,"Overview of Fibonacci Sequence"]
[]
[]
[null,"Sequence","Formula"]
[null,0]
[null,1]
[null,{"$f":"B6+B7","v":1},{"$f":"_xlfn.FORMULATEXT(B8)","v":"=B6+B7"}]
[null,{"$f":"B7+B8","v":2},"=B7+B8"]
[null,3,"=B8+B9"]
[null,5,"=B9+B10"]
[null,8,"=B10+B11"]
[null,13,"=B11+B12"]
[null,21,"=B12+B13"]
[null,34,"=B13+B14"]

{"sheet":"Mathematical","index":1,"n_rows":15,"n_cols":3,"rows_kept":15,"cut":false,"hidden":false,"merged":[[1,1,1,2]]}
[]
[null,"Use Mathematical Formula"]
[]
[]
[null,"Sequence","Formula"]
[null,0]
[null,1]
[null,{"$f":"B6+B7","v":1},{"$f":"_xlfn.FORMULATEXT(B8)","v":"=B6+B7"}]
[null,{"$f":"B7+B8","v":2},"=B7+B8"]
[null,3,"=B8+B9"]
[null,5,"=B9+B10"]
[null,8,"=B10+B11"]
[null,13,"=B11+B12"]
[null,21,"=B12+B13"]
[null,34,"=B13+B14"]

{"sheet":"VBA","index":2,"n_rows":15,"n_cols":2,"rows_kept":15,"cut":false,"hidden":false,"merged":[]}
[]
[null," Fibonacci Sequence"]
[]
[null,"Fibonacci Sequence"]
[null,{"$f":"FibonacciSeries(0,10)","v":0}]
[null,1]
[null,1]
[null,2]
[null,3]
[null,5]
[null,8]
[null,13]
[null,21]
[null,34]
[null,55]